Cogmind - Beta 14 @@@ ROGUE MODE // 2025.03.18 @ 11:51:46 Player: Zoe Result: Destroyed by Autobeam Turret with Autobeam Performance ------------- Evolutions (0) 0 Regions Visited (3) 600 Robots Destroyed (34) 170 Value Destroyed (805) 805 Prototype IDs (11) 220 Alien Tech Used (0) 0 Bonus (0) 0 TOTAL SCORE: 1795 Bonus ------- None Cogmind --------- Core Integrity 0/250 Matter 15/300 Energy 98/100 System Corruption 11% Temperature Cool (12) Movement Core (50) Location -10/Subcaves Parts ------- > --- POWER (1) -------- (None) > --- PROPULSION (2) --- Aluminum Leg > --- UTILITY (2) ------ (None) > --- WEAPON (2) ------- (None) > --- INVENTORY (5) ---- Flightbrick Rocket Launcher Peak State ------------ > --- POWER ------------ Subdweller Power Source > --- PROPULSION ------- Aluminum Leg Aluminum Leg > --- UTILITY ---------- Medium Storage Unit Signal Interpreter > --- WEAPON ----------- Subdweller Machine Gun Barrage Gun > --- INVENTORY -------- Aluminum Leg Flightbrick Improved Heat Sink Visual Processing Unit Subdweller Optics Rocket Launcher Heavy Explosive Trap [Rating: 15] Favorites ----------- Power Light Ion Engine Engine Light Ion Engine Propulsion Aluminum Leg Leg Aluminum Leg Utility Medium Storage Unit Device Subdweller Optics Storage Medium Storage Unit Processor Signal Interpreter Weapon Assault Rifle Energy Gun Small Laser Ballistic Gun Assault Rifle Launcher Rocket Launcher Build | -11 -10 -10 -10 ------- Run | Yrd Mat Min Sub Slots Evolved . | . . . . Power . | . . . . Propulsion . | . . . . Utility . | . . . . Weapon . | . . . . Parts Attached 34 | 6 3 7 18 Power 6 | 1 . 2 3 Engine 6 | 1 . 2 3 Core . | . . . . Reactor . | . . . . Propulsion 8 | 2 . 2 4 Treads . | . . . . Leg 8 | 2 . 2 4 Wheel . | . . . . Hover . | . . . . Flight . | . . . . Utility 5 | 1 3 . 1 Device 1 | . . . 1 Storage 3 | 1 2 . . Processor 1 | . 1 . . Hackware . | . . . . Protection . | . . . . Artifact . | . . . . Weapon 15 | 2 . 3 10 Energy Gun 3 | 1 . 1 1 Energy Cannon . | . . . . Ballistic Gun 9 | 1 . 1 7 Ballistic Cannon . | . . . . Launcher 3 | . . 1 2 Special Weapon . | . . . . Impact Weapon . | . . . . Slashing Weapon . | . . . . Piercing Weapon . | . . . . Special Melee Weapon . | . . . . Unidentified Prototypes . | . . . . Corrupted Parts 2 | . . . 2 System Corruption 10 | . . . 10 Parts Lost 13 | . . 4 9 Power 4 | . . 2 2 Propulsion 3 | . . . 3 Utility . | . . . . Weapon 6 | . . 2 4 Highest Loss Streak 5 | . . 3 5 To Critical Strikes . | . . . . Average Slot Usage (%) 94 | . 93 90 96 Engine 13 | . 14 14 13 Leg 27 | . 28 28 27 Storage 13 | . 13 14 13 Processor 12 | . 8 14 13 Energy Gun 9 | . 14 4 9 Ballistic Gun 15 | . 14 13 16 Peak Build Rating 15 | 6 8 8 15 Average Rating 8 | 4 7 7 10 On Entrance 5 | . 6 8 8 Naked Turns . | . . . . Heaviest Build 23 | 11 16 18 23 Greatest Support 20 | 20 20 20 20 Greatest Overweight (x) 1 | . . . 1 Average Overweight (x) . | . . . . Largest Inventory Capacity 10 | 8 10 10 10 Average Capacity 9 | 6 9 10 9 Most Carried 10 | 2 9 10 10 Average Carried 8 | 1 7 9 8 Final Capacity 10 | 8 10 10 5 Final Carried 10 | 2 9 10 5 Class Distribution -------------------- 65% | Scavenger-Mutant 34% | Mutant Dominant Class ---------------- Mutant | -10/Materials Scavenger-Mutant | -10/Mines Scavenger-Mutant | -10/Subcaves Resources | -11 -10 -10 -10 ----------- Run | Yrd Mat Min Sub Matter Collected 828 | 235 217 111 265 Remotely . | . . . . Salvage Created 1041 | . 393 278 370 Parts 55 | . 28 13 14 Haulers Intercepted 2 | . 2 . . Recyclers Shooed 1 | . . 1 . Parts Field Recycled . | . . . . Retrieved Matter . | . . . . Parts Self-Destructed 5 | . . . 5 Prevented 1 | . . . 1 Kills | -11 -10 -10 -10 ------- Run | Yrd Mat Min Sub Combat Hostiles Destroyed 25 | . 8 6 11 Guns 18 | . 8 2 8 AOE 7 | . . 4 3 Classes Destroyed 10 | . 6 2 2 Worker 3 | . 2 1 . Hauler 2 | . 2 . . Recycler 1 | . . 1 . Operator 1 | . 1 . . Watcher 2 | . 2 . . Swarmer 9 | . 6 . 3 Grunt 8 | . 2 4 2 Sentry 2 | . . 2 . Artisan 1 | . . . 1 Subdweller 6 | . . . 6 Best Kill Streak 5 | . 4 5 3 Combat Bots Only 4 | . 3 4 3 Max Kills in Single Turn 2 | . 1 2 1 Gunslinging . | . . . . Exploded 1 | . . 1 1 Melee . | . . . . Uniques/NPCs Destroyed . | . . . . Combat | -11 -10 -10 -10 -------- Run | Yrd Mat Min Sub Hostile Shots Fired 173 | . 41 50 82 Missed 53 | . 9 17 27 Damage Taken 1625 | . 302 461 862 Core 253 | . 75 64 114 Absorbed by Shields . | . . . . Regen/Repaired (Parts) 82 | . 82 . . Core Remaining (%) 100 | 100 . . . Volleys Fired 120 | . 54 15 51 Largest 2 | . 2 2 2 Hottest 90 | . 60 60 90 Shots Fired 212 | . 107 24 81 Gun 195 | . 107 20 68 Cannon . | . . . . Launcher 17 | . . 4 13 Special . | . . . . Kinetic 109 | . 54 11 44 Thermal 72 | . 53 9 10 Explosive 17 | . . 4 13 Electromagnetic 14 | . . . 14 Robot Hit Streak 17 | . 10 17 14 Robot Miss Streak 4 | . 4 2 3 Penetration Max . | . . . . Secondary Targets 2 | . 1 1 . Max Gunslinging Chain 1 | . 1 1 . Shots Hit Robots 131 | . 69 17 45 Core Hits 58 | . 21 20 17 Critical Kills . | . . . . Critical Parts Destroyed 1 | . 1 . . Critical Strikes 2 | . 1 . 1 Destroy 1 | . 1 . . Corrupt 1 | . . . 1 Melee Attacks . | . . . . Impact . | . . . . Slashing . | . . . . Piercing . | . . . . Sneak Attacks . | . . . . Combat Hostiles . | . . . . Follow-up Attacks . | . . . . Damage Inflicted 2626 | . 861 471 1294 Guns 1592 | . 861 203 528 Cannons . | . . . . Explosions 1034 | . . 268 766 Melee . | . . . . Ramming . | . . . . Kinetic 945 | . 497 97 351 Thermal 595 | . 364 106 125 Explosive 970 | . . 268 702 Electromagnetic 116 | . . . 116 Impact . | . . . . Slashing . | . . . . Piercing . | . . . . Highest Corruption 11 | . 1 1 11 Average Corruption 5 | . 1 1 8 Corruption Purged . | . . . . Corruption Blocked . | . . . . Effects 54 | . 2 5 47 Message Errors 8 | . . . 8 Matter Fused 14 | . 1 3 10 Heat Flow Errors 5 | . . 1 4 Energy Discharges 9 | . . 1 8 Parts Rejected 1 | . . . 1 Parts Fused 1 | . . . 1 Data Loss (minor) 4 | . 1 . 3 Data Loss (major) 5 | . . . 5 Misfires 5 | . . . 5 Alerts 1 | . . . 1 Weapon Failures 1 | . . . 1 Overload Shots . | . . . . Overflow Damage 54 | . . . 54 Projectiles . | . . . . Explosions 54 | . . . 54 Melee . | . . . . Knockbacks . | . . . . Impact . | . . . . Kinetic . | . . . . Secondary . | . . . . Self-Inflicted Damage 27 | . . . 27 Shots 1 | . . . 1 Rammed . | . . . . Targets Rammed 1 | . . 1 . Kicked 1 | . . 1 . Crushed . | . . . . Highest Temperature 275 | . 45 237 275 Average Temperature 62 | . 19 58 113 Received Heat Transfer 722 | . 69 264 389 Siege Activations . | . . . . Robots Corrupted . | . . . . Combat Hostiles . | . . . . Parts Fried 1 | . . . 1 Impact Corruptions . | . . . . Robots Melted . | . . . . Combat Hostiles . | . . . . Parts Melted . | . . . . Heat Transferred 1200 | . 800 225 175 Parts Sabotaged . | . . . . Parts Stolen . | . . . . Parts Stripped . | . . . . Power Chain Reactions 1 | . . . 1 Alert | -11 -10 -10 -10 ------- Run | Yrd Mat Min Sub Peak Influence 211 | . 182 211 . Initial 63 | . . 63 . Average 72 | . 75 75 . Maximum Alert Level 1 | . . 1 . Low Security (%) 89 | 100 100 77 . Level 1 10 | . . 22 . Level 2 . | . . . . Level 3 . | . . . . Level 4 . | . . . . Level 5 . | . . . . High Security . | . . . . Max Security . | . . . . Squads Dispatched 1 | . 1 . . Investigation . | . . . . Extermination . | . . . . Reinforcement 1 | . 1 . . Assault . | . . . . Garrison . | . . . . Intercept . | . . . . Searches Triggered . | . . . . Construction Impeded . | . . . . Haulers Reinforced . | . . . . Active Scanning Responses . | . . . . Cargo Convoy Interrupts . | . . . . Stealth | -11 -10 -10 -10 --------- Run | Yrd Mat Min Sub Distress Signals 1 | . 1 . . Communications Jammed . | . . . . Distress Signals . | . . . . Times Spotted 41 | . 15 6 20 Peak Tracking Total 6 | . 5 4 6 Tactical Retreats 5 | . 3 . 2 Traps | -11 -10 -10 -10 ------- Run | Yrd Mat Min Sub Traps Triggered 1 | . 1 . . Indirectly . | . . . . Trap Hack Attempts . | . . . . Triggered . | . . . . Disarmed . | . . . . Reprogrammed . | . . . . Reused . | . . . . Traps Extracted . | . . . . Installed . | . . . . Triggered . | . . . . Most Traps Carried 1 | . . 1 1 Machines | -11 -10 -10 -10 ---------- Run | Yrd Mat Min Sub Machines Disabled 1 | . . . 1 Max in Single Turn 1 | . . . 1 Machines Repaired . | . . . . Machines Dismantled . | . . . . Machines Sabotaged . | . . . . Overloaded Fab Kills . | . . . . Hacking | -11 -10 -10 -10 --------- Run | Yrd Mat Min Sub Machines Accessed 6 | . 5 . 1 Terminals 4 | . 4 . . Fabricators . | . . . . Repair Stations 1 | . 1 . . Recycling Units . | . . . . Scanalyzers . | . . . . Garrison Access . | . . . . Total Hacks 19 | . 10 . 9 Successful 15 | . 6 . 9 Failed 4 | . 4 . . Catastrophic 2 | . 2 . . Database Lockouts . | . . . . Manual 10 | . 10 . . Terminals 8 | . 8 . . Fabricators . | . . . . Repair Stations 2 | . 2 . . Recycling Units . | . . . . Scanalyzers . | . . . . Garrison Access . | . . . . Terminal Hacks 13 | . 4 . 9 Record 9 | . 1 . 8 Robot Analysis 3 | . 3 . . Derelict Proto ID Bank 1 | . . . 1 Fabricator Hacks . | . . . . Repair Station Hacks 2 | . 2 . . Scan Component 1 | . 1 . . Repair 1 | . 1 . . Recycling Unit Hacks . | . . . . Scanalyzer . | . . . . Garrison Access Hacks . | . . . . Unauthorized Hacks . | . . . . Terminals . | . . . . Fabricators . | . . . . Repair Stations . | . . . . Recycling Units . | . . . . Scanalyzers . | . . . . Garrison Access . | . . . . Data Cores Recovered . | . . . . Used . | . . . . Hacking Detections 3 | . 3 . . Full Trace Events 2 | . 2 . . Feedback Events . | . . . . Feedback Blocked . | . . . . Robot Schematics Acquired . | . . . . Robots Built . | . . . . Authchips . | . . . . Time . | . . . . Total Robot Build Rating . | . . . . Part Schematics Acquired . | . . . . Parts Built . | . . . . Authchips . | . . . . Time . | . . . . Total Part Build Rating . | . . . . Parts Repaired 1 | . 1 . . Time 26 | . 26 . . Parts Recycled . | . . . . Recycled Matter . | . . . . Retrieved Matter . | . . . . Retrieved Components . | . . . . Parts Scanalyzed . | . . . . Part Schematics Acquired . | . . . . Parts Damaged . | . . . . Bothacking | -11 -10 -10 -10 ------------ Run | Yrd Mat Min Sub Used RIF Installer . | . . . . Robots Hacked . | . . . . Non-combat . | . . . . Combat . | . . . . Robot Hacks Applied . | . . . . Relay Couplers Released . | . . . . Fabnet Peak Effective % . | . . . . Robots Rewired . | . . . . Allies Hacked . | . . . . Hacks Repelled . | . . . . Allies | -11 -10 -10 -10 -------- Run | Yrd Mat Min Sub Total Allies . | . . . . Largest Group . | . . . . Highest-Rated Group . | . . . . Highest-Rated Ally . | . . . . Total Orders . | . . . . Ally Attacks . | . . . . Total Damage . | . . . . Kills . | . . . . Allies Corrupted . | . . . . Allies Melted . | . . . . Intel | -11 -10 -10 -10 ------- Run | Yrd Mat Min Sub Robot Analysis Total 3 | . 3 . . Derelict Logs Recovered 3 | . . 2 1 Drone Launches . | . . . . Drone Recoveries . | . . . . Exploration | -11 -10 -10 -10 ------------- Run | Yrd Mat Min Sub Turns Passed 3694 | 73 975 907 1739 Spaces Moved 2391 | 59 590 709 1033 Core 70 | 12 . . 58 Treads . | . . . . Legs 2321 | 47 590 709 975 Wheels . | . . . . Hover . | . . . . Flight . | . . . . Fastest Speed 50 | 50 120 120 50 Average Speed 133 | 105 120 120 152 Slowest Speed 190 | 120 120 120 190 Overloaded Moves . | . . . . Propulsion Burnouts . | . . . . Robots Hopped . | . . . . Cave-ins Triggered . | . . . . Exploration Rate (%) 60 | 4 83 99 56 Regions Visited 3 Branch Regions 2 Pre-discovered Areas 1 | . . . 1 Known Exits Taken 2 | . 1 1 . Unknown Exits Taken 1 | 1 . . . Scrap Searched 2 | . . 1 1 Spaces Dug . | . . . . Terrain Destroyed 84 | . . 9 75 Melee . | . . . . Projectile . | . . . . AOE 84 | . . 9 75 Terrain Rammed . | . . . . Walls Destroyed . | . . . . Machines Disabled . | . . . . Actions | -11 -10 -10 -10 --------- Run | Yrd Mat Min Sub Total 2677 | 66 749 741 1121 Wait 98 | . 92 . 6 Move 2388 | 58 589 708 1033 Hop . | . . . . Pick Up 22 | 2 10 6 4 Fast Attach 15 | 6 3 1 5 Attach 8 | . . 3 5 Detach 2 | . 1 . 1 Swap 11 | . . 3 8 Drop 12 | . . 4 8 Fire 120 | . 54 15 51 Melee . | . . . . Ram . | . . . . Kick 1 | . . 1 . Crush . | . . . . Escape Stasis . | . . . . Rewire . | . . . . Trap . | . . . . Miscellaneous . | . . . . Route ------- -11/Scrapyard -10/Materials (discovered 3 exits: *Mat x2 / *Min) -10/Mines (discovered 3 exits: *Mat x2 / *Sub) -10/Subcaves (discovered 3 exits: *Mat x2 / [*Rec]) History --------- Turn | Location | Event 4 | -11/Scrapyard | Discovered new exit (range 16) 74 | -11/Scrapyard | Entered Materials 125 | -10/Materials | Discovered new exit (range 12) 290 | -10/Materials | Discovered new exit (range 14) 311 | -10/Materials | Build established: Mutant 650 | -10/Materials | Discovered new exit (range 12) 830 | -10/Materials | Repaired Med. Storage Unit 969 | -10/Materials | Identified exit to Mines 1049 | -10/Materials | Entered Mines 1091 | -10/Mines | Identified exit to Materials 1241 | -10/Mines | Core integrity fell below 50% 1271 | -10/Mines | Lost 3 parts (1p2w) 1382 | -10/Mines | Build established: Scavenger-Mutant 1503 | -10/Mines | Found a hidden stash of uninstalled traps 1572 | -10/Mines | Received a Rocket Launcher from a helpful Derelict 1935 | -10/Mines | Discovered new exit (range 14) 1949 | -10/Mines | Identified exit to Subcaves 1956 | -10/Mines | Entered Subcaves 2061 | -10/Subcaves | Discovered new exit (range 9) 2070 | -10/Subcaves | Identified exit to Materials 2416 | -10/Subcaves | Discovered exit to Materials (range 11) 2459 | -10/Subcaves | System corruption reached 10% 2487 | -10/Subcaves | Lost 5 parts (2p1n2w) 2551 | -10/Subcaves | Learned location of Zion (-7) 2677 | -10/Subcaves | Shifting Twisted Machinery released Scrap Shield 2683 | -10/Subcaves | Shifting Twisted Machinery released Flamer 3216 | -10/Subcaves | A swath of the cavern ceiling suddenly collapsed 3333 | -10/Subcaves | Ambushed by angry Subdweller bent on revenge 3372 | -10/Subcaves | Core integrity fell below 20% 3563 | -10/Subcaves | Visited 4L-MR0's lab 3583 | -10/Subcaves | Found Flightbrick 3695 | -10/Subcaves | Discovered new exit (range 8) 3695 | -10/Subcaves | Destroyed by Autobeam Turret with Autobeam Last Messages --------------- last prototype ended up, probably tossed aside somewhere as if it were useless junk..." 03582_ Dropped Broken Sub. Power Source. 03583_ Acquired Flightbrick. 03592_ System corrupted: Substantial component data lost. 03593_ Discarded Signal Interpreter. 03593_ Dropped Med. Storage Unit. 03595_ Acquired Sub. Optics. 03596_ Dropped Sub. Optics. 03605_ Subatomizers dissect the Broken Sub. Power Source. 03665_ S-10 Pest springs to life. 03665_ Dropped Sub. Machine Gun. 03666_ Dropped Barrage Gun. 03666_ Dropped Broken Sub. Power Source. 03668_ S-10 Pest destroyed. 03672_ System corrupted: Heat flow error (+249). 03687_ System corrupted: Aluminum Leg rejected. 03695_ EXIT=FOUND Map ----- +----------------------------------------------------+ | ?????????## ## ## ####?????## ## ### | | ????????## ## #?????#" " | | ??####??# #### ## #####?# | | ??# ##### ##### ## #& ## ### | | ??# ### ### ### ## | | ??# ### ## ## ### ## # # | | ??# ## ###### # ######## # | | ### #???# ## ######## ## | | "### #???## # ## ## | | ## ## ## #????## "" ### | | ## ## #### #?????## " #### | | # ## #?# ##??????#" "# #= #??# | | ## # ##?## ######???########### ## #? | | #" ## ##?# ## #####??????## #### #? | | ## ### % ###???## #?? ?? | | ## ## ##?## ###??# ?? | | # # ##### ### ###?????###? | | ###" ## # #???#[[ s ##??????????? | | ??# ## ###?#* ### #####???????????? | | ??## ### #?# ##???????????????? | | ???# ### s #????????????????? | | ???# # ## ## ##????????????????? | | ???## ####### ## #?????????????????? | | ????# #?????# ### s #?????????????????? | | ???## ##????# #### ##?????????????????? | | ???# ##???## #?##% @#####??????????????????? | | ???## #????## #" ?????????????????????? | | ????## ##?????## ## #???????????????????? | | ?????# ##???????# ## #???????????????????? | | ?????###????????####" t t "#???????????????????? | | ???????????????????#" " " "#???????????????????? | | ???????????????????#"""" """"#???????????????????? | | ???????????????????#####<#####???????????????????? | | ???????????????????????##????????????????????????? | | ?????????????????????????????????????????????????? | | ?????????????????????????????????????????????????? | | ?????????????????????????????????????????????????? | | ?????????????????????????????????????????????????? | | ?????????????????????????????????????????????????? | | ?????????????????????????????????????????????????? | | ?????????????????????????????????????????????????? | | ?????????????????????????????????????????????????? | | ?????????????????????????????????????????????????? | | ?????????????????????????????????????????????????? | | ?????????????????????????????????????????????????? | | ?????????????????????????????????????????????????? | | ?????????????????????????????????????????????????? | | ?????????????????????????????????????????????????? | | ?????????????????????????????????????????????????? | | ?????????????????????????????????????????????????? | +----------------------------------------------------+ Best States ------------- Heat Dissipation 25 Energy Generation 15 Energy Capacity 265 Matter Stores 300 Matter Capacity 300 Sight Range 16 Terrain Scan Density 10 Evasion (%) 55 Item Schematics ----------------- None Robot Schematics ------------------ None Fabricated ------------ Nothing Alien Tech Used ----------------- None Achievements -------------- None Challenges ------------ None Game ------ Seed HeartRingMonowheel Manual? 0 Play Time 00:27:23 Cumulative 58.2 hours Start 2025.03.18 @ 11:25:20 End 2025.03.18 @ 11:51:46 Sessions 1 Manual Loads 0 Difficulty Rogue Special Mode None Game No. 37 Rogue 37 Adventurer 0 Explorer 0 Win Type - Total 0 Types 0/0/0/0/0/0/0/0/0 Lore% 24 Gallery% 44 Achievement% 43 Wizard Run 0 Options --------- Layout 1 ASCII 0 Keyboard 1 Movement Numpad Keybinds 0 Fullscreen 1 Font 24/Smallcaps Map View 50x35 Zoom Use 0% Tactical HUD 1 Map Filters NONE Filters NONE Steam 1 RUN: 1fa75917-3a25-45b3-80b6-be3b9e4dd269